bitfinex-derivatives/quotes_SOLF0:USTF0_20240911
["timestamp","ask_amount","ask_price","bid_price","bid_amount"]
[1726057588442,11.64,131.87,131.81,11.64]
[1726057589041,11.64,131.87,131.8,3.7933]
[1726057589241,11.64,131.87,131.79,1.4047]
[1726057589437,3.7921,131.85,131.79,5.1982]
[1726057589749,3.7921,131.85,131.8,11.64]
[1726057590037,11.64,131.86,131.79,13.0447]
[1726057590541,11.64,131.84,131.79,1.4047]
[1726057590743,11.64,131.85,131.79,5.2830862]
[1726057590944,11.64,131.85,131.79,16.9230862]
[1726057591239,3.84387289,131.86,131.8,11.64]
[1726057591443,3.7922,131.85,131.8,11.64]
[1726057592350,15.34809524,131.86,131.8,11.64]
[1726057592948,3.792,131.85,131.8,11.64]
[1726057593138,15.34809524,131.86,131.8,11.64]
[1726057594344,3.7921,131.85,131.8,11.64]
[1726057595546,15.4321,131.85,131.8,11.64]
[1726057596047,11.64,131.85,131.8,11.64]
[1726057596745,3.7926,131.83,131.8,11.64]
[1726057597045,11.64,131.85,131.79,5.1983]
[1726057597245,11.64,131.85,131.79,13.0447]
[1726057597439,3.7924,131.84,131.79,16.8384]
[1726057600641,3.7924,131.84,131.71,3.7409111]
[1726057600642,11.64,131.84,131.71,3.7409111]
[1726057600841,11.64,131.84,131.78,11.64]
[1726057601550,11.64,131.84,131.77,11.64]
[1726057601940,11.64,131.83,131.77,11.64]
[1726057602536,3.7933,131.81,131.77,15.4342]
[1726057602741,11.64,131.83,131.77,15.4342]
[1726057603242,3.793,131.82,131.77,15.4342]
[1726057605247,3.7931,131.81,131.77,11.64]
[1726057605544,11.64,131.82,131.73,2.7654]
[1726057605750,11.64,131.82,131.75,11.64]
[1726057606047,3.7935,131.8,131.75,15.4347]
[1726057606255,3.7935,131.8,131.75,11.64]
[1726057607253,3.7935,131.8,131.76,3.7945]
[1726057607750,3.7935,131.8,131.75,11.64]
[1726057607957,3.7935,131.8,131.75,15.4347]
[1726057609345,3.7931,131.81,131.77,3.7942]
[1726057610042,3.7931,131.81,131.76,3.7944]
[1726057610242,3.793,131.82,131.77,11.64]
[1726057610454,11.64,131.83,131.77,11.64]
[1726057610850,3.7934,131.8,131.77,11.64]
[1726057611348,3.7934,131.8,131.75,3.7946]
[1726057611549,3.7934,131.8,131.76,11.64]
[1726057611745,3.7932,131.81,131.76,11.64]
[1726057611945,3.7932,131.81,131.76,15.4344]
[1726057612856,3.793,131.82,131.77,3.7942]
[1726057613151,11.64,131.83,131.76,11.64]
[1726057613354,3.78690214,131.84,131.76,15.4344]
[1726057613548,3.7932,131.81,131.76,15.4344]
[1726057613745,11.64,131.83,131.73,6.53712345]
[1726057613956,11.64,131.82,131.75,15.4348]
[1726057614145,3.7937,131.79,131.75,15.4348]
[1726057614347,11.64,131.82,131.75,15.4348]
[1726057614947,11.64,131.82,131.76,3.7944]
[1726057615150,11.64,131.82,131.75,11.64]
[1726057615353,3.7934,131.8,131.75,11.64]
[1726057615856,3.7934,131.8,131.75,15.4346]
[1726057616153,3.793,131.82,131.77,11.64]
[1726057616356,3.78955756,131.83,131.77,11.64]
[1726057616557,11.64,131.81,131.73,6.53712345]
[1726057616752,11.64,131.81,131.75,11.64]
[1726057616952,11.64,131.82,131.75,15.4347]
[1726057617162,3.793,131.82,131.77,11.64]
[1726057617452,11.64,131.83,131.77,11.64]
[1726057618252,3.7931,131.81,131.77,11.64]
[1726057619754,3.7936,131.8,131.75,11.64]
[1726057620458,3.7931,131.81,131.76,3.7945]
[1726057620755,11.64,131.83,131.76,3.7945]
[1726057621655,3.7933,131.81,131.75,15.4347]
[1726057621855,11.64,131.83,131.75,15.4347]
[1726057622060,11.64,131.82,131.75,15.4347]
[1726057622556,11.64,131.82,131.76,3.7945]
[1726057623161,3.7932,131.81,131.76,3.7945]
[1726057623359,11.64,131.82,131.75,11.64]
[1726057623559,3.7937,131.79,131.73,2.7654]
[1726057623764,3.7937,131.79,131.75,11.64]
[1726057625762,11.64,131.82,131.75,15.4348]
[1726057625763,3.7935,131.8,131.75,15.4348]
[1726057626156,11.64,131.82,131.73,2.7654]
[1726057626359,3.7934,131.8,131.75,15.4348]
[1726057626660,11.64,131.82,131.75,15.4348]
[1726057627163,11.64,131.82,131.74,3.795]
[1726057627360,11.64,131.82,131.74,15.435]
[1726057627660,11.64,131.82,131.74,3.795]
[1726057627860,11.64,131.8,131.74,15.435]
[1726057628259,3.7939,131.79,131.74,15.435]
[1726057628458,11.64,131.8,131.74,3.795]
[1726057628654,11.64,131.8,131.73,2.7654]
[1726057628859,2.6505,131.81,131.73,2.7654]
[1726057628860,3.7944,131.77,131.73,2.7654]
[1726057629059,3.84979713,131.79,131.71,3.7958]
[1726057629263,11.64,131.76,131.66,4.079]
[1726057629462,11.64,131.76,131.7,11.64]
[1726057630255,3.7954,131.74,131.7,11.64]
[1726057631265,11.64,131.76,131.66,4.079]
[1726057631266,11.64,131.76,131.68,15.4366]
[1726057631570,11.64,131.76,131.69,11.64]
[1726057632968,3.7951,131.74,131.69,15.4364]
[1726057633157,11.64,131.75,131.69,11.64]
[1726057633363,11.64,131.75,131.66,2.6754]
[1726057633364,1.3241,131.74,131.68,11.64]
[1726057633566,1.3693,131.75,131.69,11.64]
[1726057633765,6.57203456,131.79,131.72,11.64]
[1726057633962,18.21203456,131.79,131.72,11.64]
[1726057634167,6.57203456,131.79,131.72,11.64]
[1726057634369,18.21203456,131.79,131.72,11.64]
[1726057634668,3.7942,131.78,131.73,3.7953]
[1726057634974,14.3334,131.79,131.73,3.7953]
[1726057635968,2.6934,131.79,131.74,15.435]
[1726057636173,2.6934,131.79,131.74,11.64]
[1726057636470,2.6934,131.79,131.67,1.3091]
[1726057636471,1.3241,131.79,131.75,11.64]
[1726057636875,1.3241,131.79,131.75,15.4347]
[1726057637670,3.7934,131.8,131.75,15.4347]
[1726057638368,3.7937,131.79,131.75,15.4347]
[1726057638871,3.7934,131.8,131.75,15.4347]
[1726057639165,3.7933,131.81,131.76,3.7943]
[1726057639358,3.7933,131.81,131.76,15.4343]
[1726057640072,3.7933,131.81,131.77,3.7942]
[1726057640268,3.7933,131.81,131.76,11.64]
[1726057640871,3.7933,131.81,131.76,15.4344]
[1726057641065,3.7934,131.8,131.76,15.4344]
[1726057641272,12.996,131.82,131.76,15.4344]
[1726057641575,12.996,131.82,131.77,3.7942]
[1726057641772,3.7932,131.81,131.76,11.64]
[1726057641970,12.996,131.82,131.73,2.7107]
[1726057642168,3.7935,131.8,131.75,15.4346]
[1726057642368,3.7935,131.8,131.75,11.64]
[1726057642770,3.7936,131.8,131.75,11.64]
[1726057643176,11.64,131.82,131.75,11.64]
[1726057643471,3.7933,131.81,131.76,3.7945]
[1726057643670,11.64,131.82,131.76,3.7945]
[1726057643876,11.64,131.82,131.75,11.64]
[1726057644077,3.7936,131.8,131.75,15.4347]
[1726057645478,11.64,131.78,131.73,1.3082]
[1726057646574,1.4308,131.84,131.73,1.3082]
[1726057646990,1.4308,131.84,131.76,11.64]
[1726057646991,3.7933,131.81,131.76,11.64]
[1726057652980,3.7933,131.81,131.76,15.4345]
[1726057653184,131.62926801,131.83,131.76,15.4345]
[1726057653577,3.793,131.82,131.78,11.64]
[1726057653778,1.4308,131.84,131.79,11.64]
[1726057654481,3.7927,131.83,131.79,11.64]
[1726057655282,3.83660499,131.89,131.81,11.64]
[1726057655588,11.64,131.88,131.81,11.64]
[1726057655787,3.7918,131.86,131.81,15.433]
[1726057657183,3.7918,131.86,131.82,11.64]
[1726057657383,4.1242,131.91,131.82,11.64]
[1726057657585,11.64,131.89,131.82,11.64]
[1726057657887,159.04206,131.87,131.82,15.4327]
[1726057658478,155.25056,131.87,131.82,11.64]
[1726057659187,3.7918,131.86,131.82,11.64]
[1726057661189,159.04206,131.87,131.83,3.7925]
[1726057661390,155.25056,131.87,131.82,11.64]
[1726057661586,155.25056,131.87,131.84,11.64]
[1726057662591,159.04196,131.87,131.84,11.64]
[1726057664197,45.87043756,131.87,131.86,11.64]
[1726057664392,3.88180852,131.98,131.85,143.03251815]
[1726057664698,14.3659,131.99,131.92,11.64]
[1726057664998,3.71112122,131.98,131.92,11.64]
[1726057665198,2.7259,131.99,131.95,11.64]
[1726057666290,2.7259,131.99,131.96,11.64]
[1726057666487,2.7259,131.99,131.95,11.64]
[1726057668203,2.7259,131.99,131.94,21.9793]
[1726057668404,3.7874,132.01,131.94,21.9793]
[1726057669889,3.7874,132.01,131.95,3.789]
[1726057671894,18.19,132.01,131.9,18.19]
[1726057672790,3.7879,132.0,131.9,18.19]
[1726057672994,18.19,132.01,131.9,18.19]
[1726057673299,3.788,131.99,131.93,3.7894]
[1726057674801,3.788,131.99,131.85,126.63976842]
[1726057674802,18.19,131.99,131.85,126.63976842]
[1726057674992,18.19,131.99,131.89,18.19]
[1726057675192,3.7884,131.98,131.92,3.7898]
[1726057675395,18.19,131.99,131.9,3.82550992]
[1726057675800,21.9781,131.99,131.93,3.7895]
[1726057675999,3.7881,131.99,131.93,3.7895]
[1726057676603,3.7883,131.98,131.93,3.7895]
[1726057679400,2.7122,132.02,131.92,18.19]
[1726057679797,2.7122,132.02,131.93,3.79131291]
[1726057679993,3.7875,132.01,131.93,3.79131291]
[1726057680195,2.7122,132.02,131.92,18.19]
[1726057680807,2.7122,132.02,131.92,21.95478168]
[1726057681700,2.7122,132.02,131.95,18.19]
[1726057681906,2.7122,132.02,131.97,18.19]
[1726057682502,6.4993,132.02,131.97,21.9784]
[1726057682702,1.3669,132.02,131.95,18.19]
[1726057683110,3.7874,132.01,131.96,3.7886]
[1726057683307,1.3669,132.02,131.91,18.19]
[1726057683506,18.19,132.01,131.91,18.19]
[1726057683708,3.7884,131.98,131.93,3.7896]
[1726057683910,18.19,132.01,131.91,18.19]
[1726057684412,18.19,132.01,131.94,3.7891]
[1726057685010,3.7879,131.99,131.94,3.7891]
[1726057686016,3.7883,131.98,131.93,21.9796]
[1726057687811,1.3669,132.02,131.93,18.19]
[1726057688006,18.19,132.01,131.93,18.19]
[1726057688207,18.19,132.01,131.91,18.19]
[1726057688421,3.7886,131.97,131.91,21.98]
[1726057688717,3.7886,131.97,131.91,18.19]
[1726057688917,3.7883,131.98,131.92,3.7898]
[1726057689514,18.19,132.01,131.92,3.7898]
[1726057690515,18.19,131.97,131.85,126.63976842]
[1726057690719,18.19,131.97,131.87,18.19]
[1726057690915,18.19,131.97,131.88,3.7909]
[1726057692222,3.7897,131.93,131.88,3.7909]
[1726057692520,18.19,131.95,131.85,144.82976842]
[1726057692724,3.7901,131.92,131.85,144.82976842]
[1726057693026,18.19,131.97,131.87,18.19]
[1726057693725,18.19,131.97,131.89,3.7908]
[1726057695022,3.7892,131.95,131.89,3.7908]
[1726057695221,18.19,131.97,131.89,3.7908]
[1726057695414,3.80856527,132.0,131.89,3.7908]
[1726057695623,18.19,131.98,131.87,18.19]
[1726057695820,18.19,131.96,131.87,18.19]
[1726057696315,3.7899,131.93,131.88,3.791]
[1726057696520,21.93071266,131.96,131.87,18.19]
[1726057696717,21.93071266,131.96,131.85,18.19]
[1726057697528,21.93071266,131.96,131.86,3.7914]
[1726057697529,3.7902,131.92,131.86,3.7914]
[1726057697728,21.93071266,131.96,131.86,3.7914]
[1726057697925,21.93071266,131.96,131.85,18.19]
[1726057697926,3.7906,131.9,131.85,3.7917]
[1726057698326,18.19,131.93,131.84,3.84609552]
[1726057698630,3.7903,131.91,131.86,3.7914]
[1726057699630,7.5763,131.99,131.84,3.84609552]
[1726057699933,18.19,131.95,131.83,18.19]
[1726057700124,18.19,131.95,131.84,3.8060196]
[1726057700528,18.19,131.95,131.83,18.19]
[1726057700729,3.7901,131.92,131.87,3.7914]
[1726057702528,3.7897,131.93,131.88,3.7909]
[1726057702835,18.19,131.95,131.85,18.19]
[1726057703334,3.7904,131.91,131.86,3.7915]
[1726057703531,3.7904,131.91,131.85,18.19]
[1726057705224,3.7904,131.91,131.87,3.7914]
[1726057705638,3.7904,131.91,131.85,18.19]
[1726057705933,18.19,131.93,131.86,3.7915]
[1726057706332,18.19,131.91,131.79,10.83282711]
[1726057706535,18.19,131.89,131.79,18.19]
[1726057706833,18.19,131.94,131.79,3.7935]
[1726057706834,18.19,131.87,131.79,3.7935]
[1726057707033,18.19,131.87,131.78,126.70630477]
[1726057707433,3.7927,131.83,131.78,126.70630477]
[1726057707632,3.7927,131.83,131.77,3.7941]
[1726057708027,18.19,131.85,131.79,3.7936]
[1726057708232,338.0,131.93,131.79,3.7936]
[1726057708233,18.19,131.87,131.79,3.7936]
[1726057708530,3.7919,131.86,131.8,3.7933]
[1726057708735,18.19,131.89,131.8,18.19]
[1726057709435,18.19,131.91,131.82,18.19]
[1726057709633,21.98558723,131.94,131.8,18.19]
[1726057709937,18.19,131.94,131.84,18.19]
[1726057710136,3.78945409,131.93,131.84,18.19]
[1726057710438,18.19,131.94,131.84,18.19]
[1726057710633,21.93165918,131.94,131.84,18.19]
[1726057710833,3.7912,131.88,131.84,18.19]
[1726057711033,3.7912,131.88,131.83,3.7924]
[1726057712829,21.93165918,131.94,131.82,18.19]
[1726057713030,21.93165918,131.94,131.8,21.91269294]
[1726057713235,3.7908,131.89,131.84,3.7921]
[1726057714238,21.93165918,131.94,131.82,18.19]
[1726057714740,3.7907,131.9,131.85,3.7918]
[1726057715237,3.7909,131.89,131.85,3.7918]
[1726057715635,3.7909,131.89,131.84,3.7921]
[1726057718341,21.93165918,131.94,131.85,3.7919]
[1726057718342,3.7906,131.9,131.85,3.7919]
[1726057718735,224.0,131.98,131.81,3.70952662]
[1726057718938,18.19,131.96,131.85,18.19]
[1726057719133,18.19,131.9,131.82,6.57142334]
[1726057719334,18.19,131.88,131.78,18.19]
[1726057719539,3.7921,131.85,131.79,3.7935]
[1726057719844,3.7921,131.85,131.78,21.9593439]
[1726057720042,3.7921,131.85,131.8,3.7934]
[1726057721048,3.7919,131.86,131.81,3.7929]
[1726057721548,18.19,131.88,131.78,21.9593439]
[1726057721951,18.19,131.88,131.79,6.5763086]
[1726057722151,18.19,131.88,131.78,39.05755408]
[1726057722448,18.19,131.88,131.79,6.5763086]
[1726057722651,3.792,131.85,131.8,3.7932]
[1726057723647,3.7923,131.84,131.79,3.7935]
[1726057724056,18.19,131.86,131.77,126.70947483]
[1726057724247,18.19,131.86,131.78,6.57686642]
[1726057724648,3.7924,131.84,131.79,3.7936]
[1726057724854,18.19,131.86,131.78,6.57686642]
[1726057725246,18.19,131.86,131.77,130.42429161]
[1726057725446,3.7928,131.83,131.78,10.37061331]
[1726057726449,3.7924,131.84,131.79,3.7936]
[1726057726652,18.19,131.86,131.79,3.7936]
[1726057727159,3.7925,131.83,131.79,3.7936]
[1726057727353,3.7925,131.83,131.78,10.37071331]
[1726057728954,3.7925,131.83,131.79,3.7936]
[1726057729158,18.19,131.86,131.78,6.57691331]
[1726057729159,3.7923,131.84,131.78,6.57691331]
[1726057729459,3.7923,131.84,131.79,3.7936]
[1726057729855,18.19,131.86,131.78,6.57691331]
[1726057730263,18.19,131.86,131.78,10.37071331]
[1726057730463,3.7927,131.83,131.78,10.37071331]
[1726057730960,18.19,131.86,131.78,6.57691331]
[1726057731262,18.19,131.86,131.77,126.70947483]
[1726057731457,18.19,131.86,131.77,130.55544831]
[1726057731662,3.7923,131.84,131.79,3.7936]
[1726057732063,18.19,131.88,131.77,148.74544831]
[1726057732261,3.7918,131.86,131.81,3.7931]
[1726057732866,3.7915,131.87,131.82,3.7927]
[1726057733660,18.19,131.91,131.79,18.19]
[1726057734060,3.7914,131.87,131.79,18.19]
[1726057734671,3.7914,131.87,131.81,3.793]
[1726057735269,3.7914,131.87,131.79,18.19]
[1726057735668,3.7918,131.86,131.79,18.19]
[1726057735867,18.19,131.91,131.79,18.19]
[1726057736258,18.19,131.91,131.79,24.7660096]
[1726057736463,18.19,131.91,131.79,18.19]
[1726057736659,18.19,131.91,131.82,3.7926]
[1726057738280,3.7914,131.87,131.82,3.7926]
[1726057742179,18.19,131.91,131.81,21.9829]
[1726057742873,3.7917,131.86,131.81,21.9829]
[1726057743273,18.19,131.91,131.82,3.7928]
[1726057743979,18.19,131.89,131.79,3.7935]
[1726057744772,3.7925,131.84,131.79,3.7935]
[1726057744975,18.19,131.89,131.79,3.7935]
[1726057745483,3.7925,131.84,131.79,3.7935]
[1726057747180,18.19,131.89,131.78,18.19]
[1726057747381,18.19,131.89,131.8,18.19]
[1726057747783,18.19,131.89,131.8,21.9833]
[1726057748278,3.7919,131.86,131.8,25.68674571]
[1726057748479,18.19,131.89,131.8,25.68674571]
[1726057749384,3.792,131.85,131.8,25.68674571]
[1726057749585,3.792,131.85,131.8,21.9833]
[1726057749975,3.7925,131.84,131.78,21.9838]
[1726057750180,3.7925,131.84,131.78,7.66375664]
[1726057750485,3.7925,131.84,131.78,3.7938]
[1726057750887,3.7925,131.84,131.78,7.5959535]
[1726057752576,3.7922,131.85,131.79,3.7935]
[1726057752783,3.7922,131.85,131.75,10.52353193]
[1726057753087,3.7922,131.85,131.79,3.7934]
[1726057753682,3.7922,131.85,131.8,3.7934]
[1726057753883,3.7922,131.85,131.8,7.56397886]
[1726057754282,3.7918,131.86,131.8,7.56397886]
[1726057754892,3.7915,131.87,131.8,3.77057886]
[1726057755085,3.7915,131.87,131.72,58.28]
[1726057755086,3.7915,131.87,131.75,10.52353193]
[1726057755285,3.7915,131.87,131.81,3.7929]
[1726057755485,3.78726955,131.91,131.77,10.52353193]
[1726057755685,58.28,131.94,131.76,3.70116076]
[1726057755885,3.7915,131.87,131.8,3.7932]
[1726057756289,62.05399286,131.94,131.77,10.52353193]
[1726057756589,62.05399286,131.94,131.81,3.7929]
[1726057756889,3.7913,131.88,131.75,58.28]
[1726057757082,3.7913,131.88,131.76,10.52353193]
[1726057757286,3.7913,131.88,131.77,10.52353193]
[1726057757486,3.7913,131.88,131.81,3.7931]
[1726057757887,3.7913,131.88,131.78,10.52353193]
[1726057758088,3.7913,131.88,131.79,10.52353193]
[1726057758289,3.76726092,132.02,131.83,58.28]
[1726057758583,58.28,132.09,131.87,58.28]
[1726057758890,3.7882,131.98,131.88,10.52353193]
[1726057759090,3.7882,131.98,131.87,58.28]
[1726057759294,3.7882,131.98,131.9,3.7902]
[1726057759994,3.7882,131.98,131.91,3.81268295]
[1726057760490,3.7879,132.0,131.91,3.81268295]
[1726057760695,3.7879,132.0,131.89,10.50612737]
[1726057760892,3.73181295,132.02,131.9,10.50612737]
[1726057761090,7.9190347,132.1,131.9,3.77615357]
[1726057761294,3.8638879,132.15,131.89,3.7907]
[1726057761484,7.91442715,132.12,131.9,10.50612737]
[1726057761685,3.7878,132.0,131.9,14.29642737]
[1726057761892,3.7878,132.0,131.91,3.78411215]
[1726057762390,3.86104502,132.03,131.91,10.50612737]
[1726057762586,7.91369224,132.15,131.9,3.83641134]
[1726057762792,3.7868,132.03,131.91,10.49819729]
[1726057762994,3.7868,132.03,131.92,10.49819729]
[1726057763190,3.7868,132.03,131.91,10.49819729]
[1726057763394,3.7868,132.03,131.81,22.75]
[1726057763694,3.7868,132.03,131.82,10.49819729]
[1726057763893,3.7868,132.03,131.83,10.49819729]
[1726057764097,3.7868,132.03,131.84,10.49819729]
[1726057764397,3.7868,132.03,131.92,3.7897]
[1726057764797,3.7865,132.05,131.93,3.7895]
[1726057765000,3.85486926,132.06,131.93,3.7895]
[1726057765300,7.91369224,132.15,131.93,3.7895]
[1726057765896,7.91369224,132.15,131.92,3.7877984]
[1726057766099,4.7962395,132.16,131.87,10.49819729]
[1726057766293,4.7962395,132.16,131.88,10.49819729]
[1726057766492,4.7962395,132.16,131.89,10.49819729]
[1726057766693,4.7962395,132.16,131.9,10.49819729]
[1726057766900,4.7962395,132.16,131.85,10.49819729]
[1726057767086,3.7861,132.06,131.96,3.7886]
[1726057767291,3.7861,132.06,131.97,3.73845018]
[1726057768394,3.7861,132.06,131.97,7.52685018]
[1726057768605,3.7856,132.08,131.88,10.49819729]
[1726057768899,3.7856,132.08,131.89,10.49819729]
[1726057769195,7.5656,132.17,131.86,10.49819729]
[1726057769400,11.3665534,132.17,131.87,10.49819729]
[1726057769604,11.3665534,132.17,131.88,10.49819729]
[1726057769900,11.3665534,132.17,131.89,10.49819729]
[1726057770101,11.3665534,132.17,131.86,10.49819729]
[1726057770300,3.7858,132.07,131.87,10.49819729]
[1726057770497,3.7858,132.07,131.85,22.75]
[1726057770697,3.7858,132.07,131.88,10.49565591]
[1726057770895,3.7858,132.07,131.96,3.7886]
[1726057771099,3.7858,132.07,131.96,7.55630967]
[1726057771295,3.7853,132.09,131.96,3.76770967]
[1726057771494,3.7853,132.09,131.98,3.788]
[1726057771790,3.7853,132.09,131.98,7.49585665]
[1726057772298,3.7853,132.09,131.99,3.7878]
[1726057772495,3.8009534,132.17,131.99,3.7878]
[1726057772698,7.90904597,132.22,131.99,3.7878]
[1726057772899,11.67183102,132.22,131.98,3.70785665]
[1726057773099,11.67183102,132.22,131.9,10.49565591]
[1726057773396,3.76278505,132.22,132.04,3.7864]
[1726057773604,7.5617,132.24,132.04,3.7864]
[1726057774196,3.7843,132.12,132.05,3.79686434]
[1726057774605,11.39643453,132.24,132.06,3.7857]
[1726057775303,3.83473453,132.24,132.07,3.7855]
[1726057775504,11.33478853,132.31,132.07,3.7855]
[1726057775706,7.90401617,132.27,132.07,3.7855]
[1726057775898,11.33478853,132.31,132.08,3.7457396]
[1726057776105,7.5583,132.3,132.05,3.786]
[1726057776304,7.5583,132.3,131.97,1.0]
[1726057776305,7.90386657,132.26,132.06,3.71214415]
[1726057776609,3.7836,132.15,132.05,3.786]
[1726057776808,3.7836,132.15,132.06,3.77763476]
[1726057777198,3.7836,132.15,131.97,1.0]
[1726057777397,3.7838,132.14,131.97,1.0]
[1726057778202,3.7838,132.14,132.04,3.7862]
[1726057778405,3.7838,132.14,132.05,3.69094488]
[1726057778709,3.81662628,132.16,132.0,3.7874]
[1726057778901,11.69921423,132.26,131.94,3.71847307]
[1726057779102,3.7846,132.11,131.87,10.47659001]
[1726057779307,3.7846,132.11,131.87,3.73107207]
[1726057779512,3.7846,132.11,131.87,10.47659001]
[1726057779699,3.7846,132.11,131.87,26.50615596]
[1726057779900,3.7846,132.11,131.88,10.47659001]
[1726057780106,3.7846,132.11,131.87,14.23274597]
[1726057780399,3.7846,132.11,131.99,3.7876]
[1726057780603,3.7846,132.11,131.99,7.52028235]
[1726057780910,3.7846,132.11,132.0,3.7875]
[1726057781903,3.7849,132.1,131.87,22.75]
[1726057782113,3.86481605,132.13,131.89,22.75]
[1726057782412,3.86481605,132.13,131.95,1.0]
[1726057782606,7.90802752,132.28,131.95,4.75738077]
[1726057782912,3.783,132.17,131.95,1.0]
[1726057783108,3.783,132.17,131.95,15.18806575]
[1726057783310,3.783,132.17,131.95,4.70741862]
[1726057783511,3.7825,132.19,131.95,1.0]
[1726057783817,56.6126,132.48,131.95,1.0]
[1726057783818,3.78084784,132.37,131.98,22.75]
[1726057784110,7.90480914,132.34,131.98,22.75]
[1726057784301,7.5531,132.39,132.14,3.7835]
[1726057784302,3.7807,132.25,132.14,3.7835]
[1726057785213,3.7807,132.25,132.14,7.58932891]
[1726057785715,7.90017329,132.36,132.14,3.80582891]
[1726057785917,3.84443603,132.37,132.04,33.21944518]
[1726057786120,11.3241,132.46,132.04,33.21944518]
[1726057786121,3.7802,132.27,132.17,3.7826]
[1726057786815,3.7802,132.27,132.18,3.85013995]
[1726057787614,3.86640441,132.37,132.18,3.85013995]
[1726057787816,7.89767817,132.39,132.18,3.85013995]
[1726057788019,3.78,132.27,132.04,3.75179665]
[1726057788218,3.78,132.27,132.03,10.44424059]
[1726057788414,3.85316589,132.29,132.03,14.23159212]
[1726057788615,11.76483907,132.39,132.03,3.78735153]
[1726057788919,11.76483907,132.39,132.0,33.19424059]
[1726057789112,11.76483907,132.39,132.01,10.44424059]
[1726057789311,11.76483907,132.39,132.01,14.24369591]
[1726057789514,3.7809,132.24,132.13,3.7837]
[1726057789713,3.7809,132.24,132.14,3.76995234]
[1726057790514,3.7812,132.23,132.01,3.79945532]
[1726057790819,3.7812,132.23,131.98,22.75]
[1726057791217,3.7812,132.23,131.98,36.98070494]
[1726057791417,3.7812,132.23,131.99,10.44562287]
[1726057792421,3.7812,132.23,131.98,26.53508207]
[1726057792422,3.7812,132.23,132.12,3.784]
[1726057792613,3.7805,132.26,132.12,3.69052121]
[1726057792809,3.7805,132.26,131.99,10.44471145]
[1726057793009,3.75066192,132.27,132.12,3.7839]
[1726057793219,11.76483907,132.39,132.13,3.78129964]
[1726057793419,11.76483907,132.39,131.99,3.78432559]
[1726057793624,11.76483907,132.39,131.89,14.29106896]
[1726057793823,7.5544,132.37,131.97,11.27735554]
[1726057794121,7.591,132.36,131.97,3.70035554]
[1726057794325,7.591,132.31,131.89,3.84635751]
[1726057794623,11.45173076,132.31,131.89,3.84635751]
[1726057795018,11.45173076,132.31,131.9,22.75]
[1726057795420,7.591,132.28,131.91,10.45665776]
[1726057795626,7.5593,132.29,131.92,22.75]
[1726057795924,7.5593,132.29,131.98,1.0]
[1726057796117,11.45173076,132.31,131.98,4.80943125]
[1726057796621,3.7829,132.17,131.98,4.80943125]
[1726057796925,15.49459731,132.3,131.98,4.80943125]
[1726057797124,7.90359731,132.3,132.08,3.7852]
[1726057797422,7.90359731,132.3,132.09,3.70685217]
[1726057798025,7.90359731,132.3,132.09,7.49175217]
[1726057798323,3.86073076,132.31,131.98,4.80943125]
[1726057798520,15.49256347,132.32,131.98,4.80943125]
[1726057798721,11.66972877,132.32,131.98,4.80943125]
[1726057798921,3.7819,132.21,131.98,4.80943125]
[1726057799126,3.7819,132.21,131.98,15.26374193]
[1726057799424,3.7819,132.21,131.98,38.00889829]